bitfinex/quotes_ETHUSD_20240719
["timestamp","ask_amount","ask_price","bid_price","bid_amount"]
[1721410289765,2.78,3509.3,3507.8,2.362]
[1721410290056,3.0,3509.2,3507.8,2.362]
[1721410290562,1.7,3508.9,3507.2,2.362]
[1721410293119,1.7,3508.9,3507.3,0.55]
[1721410293340,0.17,3508.8,3507.4,0.30632355]
[1721410296645,0.17,3508.8,3507.3,0.55]
[1721410297075,0.17,3508.8,3507.2,2.362]
[1721410297260,3.17,3508.8,3507.2,2.362]
[1721410297575,4.95700746,3508.8,3507.2,2.362]
[1721410298359,4.95700746,3508.8,3507.1,0.1512355]
[1721410298569,2.45270821,3508.7,3507.2,0.55]
[1721410298777,5.45270821,3508.7,3507.2,0.55]
[1721410298929,1.7,3508.4,3507.1,0.1512355]
[1721410300629,7.0048,3508.4,3507.1,0.1512355]
[1721410300837,1.17928113,3508.3,3507.1,0.1512355]
[1721410301060,4.17928113,3508.3,3507.1,0.1512355]
[1721410301429,1.7,3508.0,3507.1,0.1512355]
[1721410301674,3.48801126,3508.0,3507.1,0.1512355]
[1721410301903,1.78801126,3507.9,3507.1,0.1512355]
[1721410302171,2.13741774,3507.8,3507.1,0.1512355]
[1721410302353,0.34880113,3507.8,3507.1,0.1512355]
[1721410303469,2.13717482,3507.8,3507.1,0.1512355]
[1721410303644,0.34880113,3507.8,3507.1,0.1512355]
[1721410305083,3.0,3508.2,3507.1,0.1512355]
[1721410305379,1.78791024,3508.2,3507.1,2.5856355]
[1721410305668,3.0,3508.2,3507.1,2.5856355]
[1721410306039,2.96791024,3508.6,3507.2,0.55]
[1721410306372,1.18,3508.6,3507.2,0.55]
[1721410306682,2.96791024,3508.6,3507.2,0.55]
[1721410306837,1.18,3508.6,3507.2,0.55]
[1721410307258,5.96791024,3508.6,3507.2,0.55]
[1721410308266,5.96765791,3508.6,3507.2,0.55]
[1721410308647,1.78765791,3508.5,3507.1,2.5856355]
[1721410308853,1.78765791,3508.4,3507.1,2.5856355]
[1721410309065,2.3844237,3508.3,3507.1,2.5856355]
[1721410309444,0.59676579,3508.3,3507.1,2.5856355]
[1721410311537,1.78886593,3508.2,3507.1,2.5856355]
[1721410311740,4.78886593,3508.2,3507.1,2.5856355]
[1721410311933,3.48902656,3507.9,3507.1,0.1512355]
[1721410312235,2.36978922,3507.8,3507.1,0.1512355]
[1721410312434,5.08719765,3508.2,3507.1,0.1512355]
[1721410312435,1.78902656,3508.0,3507.1,0.1512355]
[1721410312674,1.78902656,3508.1,3507.1,0.1512355]
[1721410313275,1.78902656,3508.0,3507.1,0.1512355]
[1721410313581,1.78902656,3508.1,3507.1,0.1512355]
[1721410313784,2.3276058,3508.0,3507.1,0.1512355]
[1721410314536,2.32854909,3508.0,3507.1,0.1512355]
[1721410314768,1.78996985,3507.9,3507.1,0.1512355]
[1721410314970,2.32854909,3508.0,3507.1,0.1512355]
[1721410315835,1.78996985,3507.9,3507.1,0.1512355]
[1721410316034,0.23285491,3507.8,3507.1,0.1512355]
[1721410316826,4.78996985,3507.9,3507.1,0.1512355]
[1721410316972,1.78996985,3508.0,3507.1,0.1512355]
[1721410317481,1.78996985,3508.1,3507.1,0.1512355]
[1721410317808,1.78996985,3508.0,3507.1,0.1512355]
[1721410318125,1.78996985,3508.1,3507.1,0.1512355]
[1721410318323,0.53867356,3508.0,3507.1,0.1512355]
[1721410318686,1.78996985,3508.1,3507.1,0.1512355]
[1721410318991,1.78996985,3508.1,3507.2,0.55]
[1721410319383,1.78996985,3508.2,3507.2,0.55]
[1721410319587,1.78996985,3508.2,3507.3,2.2897]
[1721410319796,4.78996985,3508.4,3507.4,0.55]
[1721410320109,4.78996985,3508.4,3507.1,0.1512355]
[1721410320110,1.7,3507.9,3507.1,0.1512355]
[1721410320287,1.78996985,3507.8,3507.1,0.1512355]
[1721410320478,2.08829816,3508.1,3507.1,0.1512355]
[1721410320479,1.78996985,3507.7,3507.1,0.1512355]
[1721410320791,1.79096517,3507.7,3507.1,0.1512355]
[1721410320975,1.79096517,3507.9,3507.1,0.1512355]
[1721410321175,2.3998,3508.3,3507.1,0.1512355]
[1721410321176,2.27006169,3507.8,3507.1,0.1512355]
[1721410321494,1.79096517,3507.7,3507.1,0.1512355]
[1721410322705,1.79096517,3507.6,3507.1,0.1512355]
[1721410323121,0.47909652,3507.8,3507.1,0.1512355]
[1721410323316,1.7909846,3507.7,3507.1,0.1512355]
[1721410323794,1.7909846,3507.8,3507.1,0.1512355]
[1721410323978,1.7909846,3507.7,3507.1,0.1512355]
[1721410325717,5.08948204,3508.0,3507.1,0.1512355]
[1721410325718,1.7909846,3507.8,3507.1,0.1512355]
[1721410325925,0.47909846,3507.7,3507.1,0.1512355]
[1721410326077,1.7906501,3507.8,3507.1,0.1512355]
[1721410326284,1.79065598,3507.7,3507.1,0.1512355]
[1721410327980,5.08909864,3508.0,3507.1,0.1512355]
[1721410327981,1.79065598,3507.9,3507.1,0.1512355]
[1721410328190,1.79065598,3508.0,3507.1,0.1512355]
[1721410328378,1.79065598,3507.9,3507.1,0.1512355]
[1721410329024,1.79065598,3508.0,3507.1,0.1512355]
[1721410329183,2.26972158,3507.9,3507.1,0.1512355]
[1721410329520,0.4790656,3507.9,3507.1,0.1512355]
[1721410330426,2.2694102,3507.9,3507.1,0.1512355]
[1721410330598,0.4790656,3507.9,3507.1,0.1512355]
[1721410331025,1.7903446,3508.1,3507.1,0.1512355]
[1721410331585,1.7903446,3508.0,3507.1,0.1512355]
[1721410331808,1.7903446,3508.1,3507.1,0.1512355]
[1721410332597,3.0,3508.3,3507.1,0.1512355]
[1721410332916,1.7904526,3508.1,3507.1,0.1512355]
[1721410333122,1.7904526,3508.0,3507.1,0.1512355]
[1721410333322,1.79048599,3508.2,3507.1,0.1512355]
[1721410333489,1.79048599,3508.1,3507.1,0.1512355]
[1721410333690,1.79048599,3508.0,3507.1,0.1512355]
[1721410334182,3.0,3508.2,3507.2,2.88]
[1721410334183,1.79048599,3508.2,3507.2,2.88]
[1721410335630,2.08890032,3508.5,3507.5,2.4728]
[1721410335838,2.08890032,3508.5,3507.4,2.786]
[1721410335839,1.79334483,3508.4,3507.7,2.4728]
[1721410335986,1.79334483,3508.6,3507.8,3.08828]
[1721410336191,1.79334483,3508.8,3507.9,0.55]
[1721410336985,1.79334483,3508.7,3507.9,0.55]
[1721410337188,1.79334483,3508.7,3507.8,0.30228]
[1721410337502,5.09223563,3509.0,3507.7,2.4728]
[1721410337503,1.79334483,3508.5,3507.7,2.4728]
[1721410337698,1.79334483,3508.3,3507.7,2.4728]
[1721410337912,1.79334483,3508.3,3507.1,0.1512355]
[1721410338227,1.79334483,3507.9,3507.1,0.1512355]
[1721410338819,1.79341422,3508.1,3507.1,0.1512355]
[1721410339127,1.79341422,3508.1,3507.1,0.73395388]
[1721410339334,1.79341422,3508.3,3507.1,0.73395388]
[1721410339621,1.79341422,3508.2,3507.2,0.55]
[1721410340003,1.79341422,3508.1,3507.2,0.55]
[1721410340205,1.79341422,3508.1,3507.3,0.75416539]
[1721410340505,1.79341422,3507.9,3507.1,0.1512355]
[1721410340712,1.79341422,3507.8,3507.1,0.1512355]
[1721410341526,1.79341422,3507.7,3507.1,0.1512355]
[1721410341743,1.79341422,3507.8,3507.1,0.1512355]
[1721410341960,1.7,3508.1,3507.1,0.1512355]
[1721410342250,1.79388715,3507.6,3507.1,0.1512355]
[1721410343225,1.79388715,3507.3,3507.1,0.1512355]
[1721410343453,1.79388715,3507.2,3507.1,0.1512355]
[1721410343866,1.79388715,3507.4,3507.1,0.1512355]
[1721410344354,1.79388715,3507.3,3507.1,0.1512355]
[1721410344558,1.79388715,3507.4,3507.1,0.1512355]
[1721410345138,3.0,3507.7,3507.1,0.1512355]
[1721410345419,1.79416718,3507.3,3507.1,0.1512355]
[1721410345639,1.7942021,3507.4,3507.1,0.1512355]
[1721410345860,1.79417176,3507.6,3507.1,0.1512355]
[1721410346363,3.0,3507.8,3507.1,0.1512355]
[1721410346364,1.79417176,3507.7,3507.1,0.1512355]
[1721410346670,1.79417176,3507.8,3507.1,0.54495905]
[1721410346967,1.79417176,3507.9,3507.2,2.4752]
[1721410348129,1.79417176,3507.8,3507.2,2.4752]
[1721410348332,1.97347798,3507.7,3507.2,2.4752]
[1721410348553,0.17941718,3507.7,3507.2,2.4752]
[1721410348732,1.7940608,3507.8,3507.2,2.4752]
[1721410349150,5.09307094,3508.1,3507.2,2.4752]
[1721410349151,1.7940608,3507.7,3507.2,2.4752]
[1721410349570,1.7940608,3507.6,3507.2,2.4752]
[1721410349868,1.7940608,3507.6,3507.1,0.1512355]
[1721410350174,4.7,3508.1,3507.1,0.1512355]
[1721410350175,1.97346688,3507.5,3507.1,0.1512355]
[1721410350461,4.7,3508.1,3507.1,0.1512355]
[1721410350462,1.7940608,3507.6,3507.1,0.1512355]
[1721410350664,1.7940608,3507.8,3507.1,0.1512355]
[1721410351436,3.0,3508.1,3507.1,0.1512355]
[1721410351632,1.79420831,3507.8,3507.1,0.1512355]
[1721410351858,1.79420831,3507.7,3507.1,0.1512355]
[1721410352838,2.18295344,3507.7,3507.1,0.1512355]
[1721410353038,0.38874513,3507.7,3507.1,0.1512355]
[1721410353277,1.79420831,3507.8,3507.1,0.1512355]
[1721410353480,1.79420831,3507.7,3507.1,0.1512355]
[1721410353641,1.79420831,3507.8,3507.1,0.1512355]
[1721410354764,1.79444432,3507.7,3507.1,0.1512355]
[1721410355083,3.17933448,3508.6,3507.1,0.1512355]
[1721410355265,1.79443459,3507.7,3507.1,0.1512355]
[1721410355946,1.79443459,3507.8,3507.1,0.1512355]
[1721410356155,1.79443459,3507.9,3507.2,0.55]
[1721410356700,1.79443459,3507.9,3507.2,3.336]
[1721410356991,1.79443459,3508.3,3507.6,2.786]
[1721410357149,2.47295517,3508.9,3507.6,2.786]
[1721410357150,1.79443459,3508.6,3507.7,2.8545]
[1721410357541,1.79443459,3508.7,3507.7,2.8545]
[1721410357744,1.79359674,3508.6,3507.8,0.56405]
[1721410357942,2.96224483,3509.6,3507.7,2.8545]
[1721410357943,1.79359674,3508.5,3507.7,2.8545]
[1721410358169,1.79359674,3508.4,3507.7,2.3045]
[1721410358369,1.79359674,3508.3,3507.7,2.3045]
[1721410358682,1.79359674,3508.5,3507.7,2.3045]
[1721410359046,1.79359674,3508.4,3507.7,2.3045]
[1721410359455,1.79359674,3508.3,3507.7,2.3045]
[1721410359660,1.79359674,3508.4,3507.7,2.3045]
[1721410359955,2.18220937,3508.4,3507.7,2.3045]
[1721410360148,1.79359674,3508.3,3507.7,2.3045]
[1721410360557,1.79359674,3508.2,3507.7,2.3045]
[1721410360886,1.79324509,3508.3,3507.2,5.1894]
[1721410361181,1.79324509,3508.2,3507.3,0.55]
[1721410361379,2.01143086,3508.2,3507.3,0.55]
[1721410361587,1.79324509,3508.2,3507.3,0.55]
[1721410362083,1.79324509,3508.2,3507.2,2.4034]
[1721410362273,1.79324509,3508.0,3507.2,2.4034]
[1721410363062,2.47131589,3508.6,3507.2,2.4034]
[1721410363063,1.79324509,3507.9,3507.2,2.4034]
[1721410363385,1.79324509,3508.0,3507.2,2.4034]
[1721410363577,1.9725696,3508.0,3507.2,2.4034]
[1721410363781,1.79324509,3507.9,3507.2,2.4034]
[1721410364093,0.17932451,3508.0,3507.2,2.4034]
[1721410364251,1.7933332,3507.9,3507.2,2.4034]
[1721410364676,1.79340735,3507.9,3507.2,2.4034]
[1721410365986,1.79340735,3508.1,3507.2,2.4034]
[1721410366146,1.79340735,3508.2,3507.2,5.1894]
[1721410366351,3.0,3508.4,3507.7,2.3939]
[1721410366352,4.79340735,3508.4,3507.7,2.3939]
[1721410366687,1.79340735,3508.5,3507.7,2.3939]
[1721410367250,1.79305324,3508.4,3507.7,2.3939]
[1721410367949,1.79305324,3508.3,3507.7,2.3939]
[1721410368994,1.79305324,3508.5,3507.7,2.3939]
[1721410369602,2.09189545,3508.8,3508.0,2.786]
[1721410369603,1.79305324,3508.8,3508.0,2.786]
[1721410370066,1.79305324,3508.9,3508.0,2.786]
[1721410370271,3.0,3509.0,3508.0,2.786]
[1721410370516,3.0,3509.4,3508.0,2.786]
[1721410370517,1.79239281,3508.9,3508.0,3.35899]
[1721410370674,1.79239281,3508.9,3508.1,0.05700263]
[1721410370877,1.79239281,3509.0,3508.3,2.3939]
[1721410371107,1.79239281,3509.1,3508.3,2.45090048]
[1721410371265,4.79239281,3509.2,3508.3,2.3939]
[1721410371473,1.79239281,3509.2,3508.3,2.969189]
[1721410371682,1.79239281,3509.2,3508.4,2.786]
[1721410371889,1.79239281,3509.5,3508.9,2.3939]
[1721410372206,1.79239281,3510.1,3509.0,0.55]
[1721410372370,1.79239281,3510.2,3509.1,0.05698536]
[1721410373005,1.79239281,3510.2,3509.2,2.786]
[1721410373223,4.17014135,3510.9,3509.6,2.786]
[1721410373224,1.79239281,3510.5,3509.6,2.786]
[1721410373381,1.79239281,3510.6,3509.7,0.05697789]
[1721410373568,1.79239281,3510.8,3509.7,0.05697789]
[1721410373770,1.79239281,3510.8,3509.6,2.786]
[1721410374229,2.3319,3511.2,3509.7,0.0569763]
[1721410374230,1.79239281,3511.0,3509.7,0.0569763]
[1721410374375,2.3319,3511.2,3509.6,2.786]
[1721410374376,1.79239281,3511.1,3509.6,2.786]
[1721410374796,0.58242928,3511.0,3509.6,2.786]
[1721410375584,0.58242928,3511.0,3509.7,0.55]
[1721410375780,1.79239281,3511.2,3509.7,0.55]
[1721410376185,1.79239281,3511.3,3509.7,0.55]
[1721410376406,1.7,3511.3,3509.7,0.55]
[1721410376577,6.49239281,3511.3,3509.7,0.55]
[1721410376772,3.49239281,3511.3,3509.7,0.55]
[1721410376969,3.34923928,3511.2,3509.7,0.55]
[1721410377207,0.34923928,3511.2,3509.7,0.55]
[1721410377569,0.34923928,3511.2,3509.3,2.3175]
[1721410377770,1.7,3510.8,3509.3,2.3175]
[1721410378375,4.7,3510.8,3509.3,2.3175]
[1721410378589,0.94847922,3510.7,3509.3,2.3175]
[1721410378784,1.7,3510.3,3508.8,5.1031]
[1721410379088,1.7,3510.3,3508.8,2.3171]
[1721410380221,2.3235,3510.2,3508.8,2.3171]
[1721410380628,5.3235,3510.2,3508.8,2.3171]
[1721410380935,0.53235,3510.1,3508.8,2.82741]
[1721410381211,3.53235,3510.1,3508.8,2.3171]
[1721410382221,0.53235,3510.1,3508.8,2.3171]
[1721410382373,3.0,3510.6,3508.8,2.3171]
[1721410384922,0.94847922,3510.7,3509.5,2.2734]
[1721410385088,5.91640009,3511.1,3509.5,2.2734]
[1721410385411,4.1339,3511.1,3509.5,2.2734]
[1721410386008,0.34923928,3511.2,3509.5,2.2734]
[1721410386212,0.34923928,3511.2,3509.8,2.786]
[1721410386518,0.34923928,3511.2,3510.0,2.3494]
[1721410386731,1.18,3511.6,3510.2,2.786]
[1721410386944,1.18,3511.6,3510.3,0.05696614]
[1721410387219,0.42655225,3512.4,3510.7,2.3604]
[1721410387517,0.2861,3512.4,3510.7,2.3604]
[1721410388581,0.2861,3512.4,3511.0,2.786]
[1721410388812,0.2861,3512.4,3511.1,0.55]
[1721410389879,0.2861,3512.4,3511.2,0.3336]
[1721410390115,0.2861,3512.4,3511.3,0.55]
[1721410390480,0.2861,3512.4,3511.4,2.309]
[1721410390696,0.2861,3512.4,3511.5,0.55]
[1721410391291,0.2861,3512.4,3511.4,2.309]
[1721410391913,0.2861,3512.4,3510.8,9.699]
[1721410392116,0.30721,3512.3,3510.9,0.55]
[1721410392523,0.30721,3512.3,3510.8,9.699]
[1721410392524,2.00721,3512.3,3510.8,9.699]
[1721410392726,1.7,3511.9,3510.2,2.3181]
[1721410393945,0.30721,3512.3,3510.3,2.84296466]
[1721410394104,5.00721,3512.3,3510.3,2.786]
[1721410394442,0.529331,3512.2,3510.4,0.51041]
[1721410394617,2.00721,3512.3,3510.4,0.51041]
[1721410394819,3.09321,3512.3,3510.5,2.2615]
[1721410395030,3.0,3512.2,3510.5,2.2615]
[1721410395342,3.0,3512.2,3510.6,0.55]
[1721410396544,0.30721,3512.3,3510.6,0.55]
[1721410396752,0.30721,3512.3,3510.7,0.28684558]
[1721410396905,0.30721,3512.3,3510.8,0.55]
[1721410397108,2.786,3512.1,3510.8,0.55]
[1721410397402,3.0,3512.0,3510.8,0.55]
[1721410399033,3.0,3512.0,3510.9,2.44935269]
[1721410399231,0.2861,3512.4,3511.0,0.87861983]
[1721410400056,2.4535,3512.3,3510.9,2.3924]
[1721410400208,1.7,3512.1,3510.9,2.3924]
[1721410400408,2.786,3511.8,3510.4,2.3231]
[1721410400604,2.786,3511.3,3510.4,2.3231]
[1721410400852,2.786,3510.9,3509.9,2.3231]
[1721410401035,3.2786,3510.8,3509.7,7.39]
[1721410401355,3.2786,3510.8,3509.3,2.3231]
[1721410401356,2.786,3510.5,3509.3,2.3231]
[1721410401643,3.0,3510.4,3509.3,2.3231]
[1721410402144,0.2786,3510.8,3509.3,2.3231]
[1721410403024,1.7,3510.7,3509.3,2.3231]
[1721410403418,3.0,3510.8,3509.3,2.3231]
[1721410403617,1.7,3511.1,3509.3,2.3231]
[1721410403825,1.7,3511.1,3509.4,0.55]
[1721410406376,1.7,3511.5,3509.4,3.336]
[1721410406525,0.402762,3511.4,3509.5,0.5716079]
[1721410406722,1.7,3511.1,3509.5,0.5716079]
[1721410407432,1.7,3511.1,3509.6,0.55]
[1721410407824,1.7,3511.1,3509.7,0.39076079]
[1721410408162,0.402762,3511.4,3509.7,0.39076079]
[1721410408569,0.402762,3511.4,3509.8,0.55]
[1721410409128,0.402762,3511.4,3509.9,2.3295]
[1721410409470,2.3605,3511.9,3509.9,2.3295]
[1721410409471,3.0,3511.8,3509.9,2.3295]
[1721410410333,1.7,3511.5,3509.9,2.3295]
[1721410410756,1.7,3511.5,3510.0,0.55]
[1721410411424,2.786,3510.9,3509.9,2.3295]
[1721410411621,0.4486,3510.8,3509.9,2.3295]
[1721410411828,3.4486,3510.8,3509.9,2.3295]
[1721410412127,0.4486,3510.8,3509.9,2.3295]
[1721410412460,1.7,3511.1,3509.9,2.3295]
[1721410413025,2.786,3511.3,3509.4,2.465]
[1721410413026,1.7,3510.7,3509.4,2.465]
[1721410415343,1.7,3510.7,3509.4,2.455]
[1721410416641,1.78606864,3510.9,3509.4,2.455]
[1721410416840,0.17860686,3510.8,3509.4,2.7005]
[1721410417779,1.78606864,3511.1,3509.5,2.8429788]
[1721410417953,1.18,3511.6,3509.6,0.55]
[1721410417954,6.48606864,3511.3,3509.6,0.55]
[1721410418158,3.48606864,3511.3,3509.6,0.55]
[1721410418342,5.1346755,3511.2,3509.6,1.15365]
[1721410418836,1.78606864,3511.6,3509.9,2.786]
[1721410419147,1.7,3511.8,3510.0,0.55]
[1721410419148,1.78606864,3511.7,3510.0,0.55]
[1721410419330,1.7,3511.3,3510.0,0.55]
[1721410419531,1.7,3511.3,3510.1,0.29959]
[1721410419769,1.7,3511.3,3510.2,0.55]
[1721410419937,1.7,3511.7,3510.2,0.55]
[1721410420147,3.4861309,3511.7,3510.2,0.55]
[1721410420346,3.0,3511.6,3510.2,0.55]
[1721410420574,0.64861309,3511.5,3510.2,0.55]
[1721410420956,1.7861309,3511.9,3510.4,2.326]
[1721410421136,1.7861309,3512.0,3510.4,2.326]
[1721410421459,6.279,3512.4,3510.4,2.326]
[1721410421460,3.4861309,3512.1,3510.4,2.326]
[1721410421633,1.7861309,3512.0,3510.4,2.326]
[1721410422342,1.7861309,3511.9,3510.4,2.326]
[1721410422575,0.64861309,3511.8,3510.4,2.643559]
[1721410422777,2.43460985,3511.8,3510.4,2.643559]
[1721410423181,1.78599676,3511.7,3510.4,2.643559]
[1721410423488,1.78603782,3511.7,3510.4,2.643559]
[1721410424079,1.78603782,3511.7,3510.4,2.326]
[1721410424304,1.7,3511.4,3510.4,2.326]
[1721410424447,4.78603782,3511.5,3510.4,2.326]
[1721410424643,1.78603782,3511.6,3510.4,2.326]
[1721410424846,3.48603782,3511.7,3510.4,2.326]
[1721410425155,5.4346416,3511.6,3510.4,2.326]
[1721410425342,1.7,3511.3,3510.4,2.326]
[1721410426048,6.48650617,3511.3,3510.4,2.326]
[1721410426483,4.7,3511.3,3510.4,2.326]
[1721410426688,1.7,3511.3,3510.4,2.326]
[1721410426850,0.64865062,3511.2,3510.4,2.326]
[1721410427355,2.43515679,3511.2,3510.4,2.326]
[1721410428155,1.78650617,3511.1,3510.4,2.326]
[1721410428354,1.78650617,3511.0,3510.4,2.326]
[1721410428760,1.78650617,3511.0,3509.6,0.60365]
[1721410428761,1.78650617,3511.0,3509.7,2.4601]
[1721410428951,3.0,3511.1,3509.7,2.4601]
[1721410428952,1.78650617,3510.8,3509.7,2.4601]
[1721410429199,2.50098596,3510.9,3509.7,2.4601]
[1721410429766,3.48747028,3510.8,3509.7,2.4601]
[1721410430077,1.78747028,3510.6,3509.7,2.4601]
[1721410430594,0.2974365,3510.7,3508.6,11.097]
[1721410430595,1.78747028,3510.4,3508.6,11.097]
[1721410430801,1.78747028,3510.2,3508.7,3.4719]
[1721410430999,1.78747028,3510.1,3508.7,3.4719]
[1721410431197,1.78747028,3510.2,3508.7,2.3622]
[1721410433292,5.43694057,3509.5,3508.7,2.3622]
[1721410433457,1.78812779,3509.4,3508.7,2.3622]
[1721410434157,4.78812779,3509.7,3508.7,2.3622]
[1721410434357,1.78812779,3509.7,3508.7,2.3622]
[1721410434562,1.7,3509.5,3508.7,2.3622]
[1721410434790,1.78812779,3509.4,3508.7,2.3622]
[1721410434958,4.78812779,3509.4,3508.7,2.3622]
[1721410435376,3.34881278,3509.6,3508.7,2.3622]
[1721410435603,1.78663415,3509.5,3508.7,2.3622]
[1721410435786,0.38354469,3509.4,3508.7,2.3622]
[1721410435990,2.17019072,3509.4,3508.7,2.3622]
[1721410436170,0.38354469,3509.4,3508.7,2.3622]
[1721410437475,1.7,3509.3,3507.9,2.2834]
[1721410437684,2.42190035,3509.3,3508.0,1.51734]
[1721410437886,2.42190035,3509.3,3508.0,0.55]
[1721410438268,3.0,3509.5,3508.1,2.2549]
[1721410438571,3.34881278,3509.6,3508.2,0.55]
[1721410439072,0.34881278,3509.6,3508.2,0.55]
[1721410440279,1.78593632,3510.0,3508.2,0.55]
[1721410440280,3.0,3509.9,3508.3,2.36539632]
[1721410440487,0.29729089,3509.7,3508.4,0.55]
[1721410442305,0.29729089,3509.7,3508.5,2.4155]
[1721410442506,0.29729089,3509.7,3508.6,0.55]
[1721410445410,0.29729089,3509.7,3508.7,2.3122]
[1721410445600,1.78632093,3510.4,3508.9,2.783]
[1721410446111,0.29728692,3510.2,3508.9,2.783]
[1721410446297,0.29728692,3510.2,3509.0,2.8622]
[1721410446500,7.47,3510.7,3509.0,2.8622]
[1721410446739,1.78632093,3510.8,3509.0,2.8622]
[1721410446905,0.297343,3510.6,3509.2,2.356]
[1721410447748,0.297343,3510.6,3509.3,0.05698164]
[1721410448832,0.297343,3510.6,3509.2,2.356]
[1721410449030,5.08411399,3510.6,3509.2,2.356]
[1721410449256,0.297343,3510.6,3509.3,0.05698162]
[1721410449441,0.297343,3510.6,3509.4,0.30402217]
[1721410449641,0.297343,3510.6,3509.5,0.55]
[1721410450527,1.7,3510.5,3509.2,2.356]
[1721410450972,4.7,3510.5,3509.3,0.55]
[1721410452370,3.0,3510.5,3509.3,0.55]
[1721410452571,0.54327688,3510.5,3509.3,0.84629799]
[1721410452793,3.54327688,3510.5,3509.3,0.84629799]
[1721410453557,0.54327688,3510.5,3509.3,0.84629799]
[1721410453901,3.297343,3510.6,3509.4,0.05697782]
[1721410454064,3.297343,3510.6,3509.5,3.0085]
[1721410454246,0.297343,3510.6,3509.5,3.0085]
[1721410454451,0.297343,3510.6,3509.5,3.06547408]
[1721410454867,1.78696073,3511.0,3509.5,3.0085]
[1721410455075,1.78696073,3510.8,3509.5,3.0085]
[1721410455608,0.29738441,3510.9,3509.5,3.0085]
[1721410455609,2.08434514,3510.9,3509.5,3.0085]
[1721410456913,0.29738441,3510.9,3509.5,3.0085]
[1721410457078,2.28686585,3510.8,3509.5,3.0085]
[1721410457280,1.78712741,3510.7,3509.5,3.0085]
[1721410457480,1.7872769,3510.7,3509.5,3.0085]
[1721410457884,2.28701534,3510.8,3509.5,3.0085]
[1721410458210,1.7872769,3510.7,3509.5,3.0085]
[1721410458415,0.25843998,3510.6,3509.5,2.4585]
[1721410458613,2.04571688,3510.6,3509.5,2.4585]
[1721410458796,5.04571688,3510.6,3509.5,2.4585]
[1721410459112,1.7872769,3510.4,3509.5,2.4585]
[1721410459295,2.29184859,3510.3,3509.5,2.4585]
[1721410459606,1.7872769,3510.2,3509.5,2.4585]
[1721410460016,0.50457169,3510.3,3509.5,2.4585]
[1721410460017,2.2922013,3510.3,3509.5,2.4585]
[1721410461614,1.78762961,3510.2,3509.5,2.4585]
[1721410462108,2.2922013,3510.3,3509.5,2.4585]
[1721410462283,0.52922013,3510.2,3509.5,2.4585]
[1721410462482,3.52922013,3510.2,3509.5,2.4585]
[1721410463373,0.52922013,3510.2,3509.5,2.4585]
[1721410463609,1.78746182,3510.2,3509.5,2.4585]
[1721410465197,1.78746182,3510.3,3509.5,2.4585]
[1721410465394,5.3438121,3510.6,3509.5,2.4585]
[1721410465395,1.78746182,3510.2,3509.5,2.4585]
[1721410465649,2.08488528,3510.2,3509.5,2.4585]
[1721410466108,0.29742346,3510.2,3509.5,2.4585]
[1721410467212,2.08538763,3510.2,3509.5,2.4585]
[1721410467445,0.20853876,3510.1,3509.5,2.4585]
[1721410468246,1.99650293,3510.1,3509.5,2.4585]
[1721410469925,1.99770559,3510.1,3509.5,2.4585]
[1721410470341,1.99794358,3510.1,3509.5,2.4585]
[1721410471139,1.78940482,3510.0,3509.5,2.4585]
[1721410471447,2.01894152,3510.0,3509.5,2.4585]
[1721410471662,0.2295367,3510.0,3509.5,2.4585]
[1721410472333,2.01894152,3510.0,3509.5,2.4585]
[1721410472918,0.2295367,3510.0,3509.5,2.4585]
[1721410473136,1.79014927,3510.0,3509.5,2.4585]
[1721410473521,1.79014927,3509.8,3508.7,2.3149]
[1721410473760,2.29704625,3510.1,3508.7,2.3149]
[1721410473761,1.79014927,3509.5,3508.7,2.3149]
[1721410473935,0.20853876,3510.1,3508.7,2.3149]
[1721410473936,1.9691642,3509.4,3508.7,2.3149]
[1721410474720,1.79014927,3509.3,3508.7,2.3149]
[1721410475148,1.79014927,3509.4,3508.7,2.3149]
[1721410475557,1.79014927,3509.5,3508.7,2.3149]
[1721410475861,1.79014927,3509.4,3508.7,2.3149]
[1721410476168,1.79014927,3509.5,3508.9,2.783]
[1721410476330,5.46704947,3510.1,3508.9,2.783]
[1721410476331,1.79014927,3509.9,3509.0,0.55]
[1721410476521,1.79014927,3509.8,3509.0,0.55]
[1721410476839,1.79014927,3509.9,3509.1,0.3333]
[1721410477182,1.79014927,3510.0,3509.2,2.4656]
[1721410478555,1.79014927,3510.1,3509.3,0.55]
[1721410478756,1.79014927,3510.1,3509.3,3.333]
[1721410478959,1.79014927,3510.3,3509.5,2.4976]
[1721410479145,7.47,3511.6,3509.5,2.4976]
[1721410479146,1.79014927,3510.4,3509.7,2.3569]
[1721410479369,2.96224483,3511.4,3509.8,0.60697155]
[1721410479560,1.79074617,3510.6,3509.8,0.60697155]
[1721410479792,0.29735861,3511.3,3509.9,0.29638716]
[1721410479975,1.79056434,3510.5,3509.9,0.29638716]
[1721410480449,1.79056434,3510.7,3510.0,0.55]
[1721410480649,1.79056434,3510.6,3510.0,0.55]
[1721410481163,3.0,3510.9,3510.0,0.55]
[1721410481164,1.79056434,3510.7,3510.0,0.55]
[1721410481404,1.79056434,3510.6,3510.0,0.55]
[1721410482294,1.79056434,3510.6,3510.0,0.87032872]
[1721410482469,5.08899173,3510.9,3510.0,0.87032872]
[1721410482470,3.0,3510.9,3510.0,0.87032872]
[1721410482670,1.79098441,3510.6,3510.0,0.87032872]
[1721410483263,1.79098441,3510.6,3510.0,0.55]
[1721410483597,1.79098441,3510.6,3509.8,0.55]
[1721410483792,1.79098441,3510.6,3509.7,2.3569]
[1721410484012,1.79098441,3510.5,3509.7,2.3569]
[1721410484160,1.79098441,3510.4,3509.7,2.3569]
[1721410484589,2.17903103,3510.4,3509.7,2.3569]
[1721410484774,1.79098441,3510.2,3509.7,2.3569]
[1721410485280,1.79098441,3510.1,3509.7,2.3569]